fUST/lending_fUST_20250214
["ID","MTS","AMOUNT","RATE_DAILY","PERIOD"]
[353057553,1739531439195,-500.0,0.00013698,2]
[353057554,1739531439205,-500.0,0.00013698,2]
[353057555,1739531439215,-500.0,0.00013698,2]
[353057556,1739531439225,-500.0,0.00013698,2]
[353057557,1739531439235,-644.45,0.00013698,2]
[353057558,1739531439244,-500.0,0.00013698,2]
[353057559,1739531439254,-500.0,0.00013698,2]
[353057560,1739531439263,-500.0,0.00013698,2]
[353057561,1739531439272,-500.0,0.00013698,2]
[353057562,1739531439281,-500.0,0.00013698,2]
[353057563,1739531439292,-500.0,0.00013698,2]
[353057564,1739531439301,-659.9,0.00013698,2]
[353057565,1739531439311,-500.0,0.00013698,2]
[353057566,1739531439320,-500.0,0.00013698,2]
[353057567,1739531439330,-500.0,0.00013698,2]
[353057568,1739531439340,-500.0,0.00013698,2]
[353057569,1739531439349,-500.0,0.00013698,2]
[353057570,1739531439358,-500.0,0.00013698,2]
[353057571,1739531439368,-500.0,0.00013698,2]
[353057572,1739531439379,-500.0,0.00013698,2]
[353057573,1739531439389,-500.0,0.00013698,2]
[353057574,1739531439399,-500.0,0.00013698,2]
[353057575,1739531439409,-500.0,0.00013698,2]
[353057576,1739531439419,-500.0,0.00013698,2]
[353057577,1739531439429,-500.0,0.00013698,2]
[353057578,1739531439439,-500.0,0.00013698,2]
[353057579,1739531439450,-500.0,0.00013698,2]
[353057580,1739531439459,-500.0,0.00013698,2]
[353057581,1739531439470,-298.66687456,0.00013698,2]
[353057582,1739531439480,-591.33463904,0.00013698,2]
[353057583,1739531439490,-500.0,0.00013698,2]
[353057584,1739531439500,-500.0,0.00013698,2]
[353057585,1739531439510,-500.0,0.00013698,2]
[353057586,1739531439519,-660.79,0.00013698,2]
[353057587,1739531439529,-500.0,0.00013698,2]
[353057588,1739531439539,-500.0,0.00013698,2]
[353057589,1739531439552,-519.86851617,0.00013698,2]
[353057590,1739531439562,-500.0,0.00013698,2]
[353057591,1739531439571,-500.0,0.00013698,2]
[353057592,1739531439582,-500.0,0.00013698,2]
[353057593,1739531439593,-500.0,0.00013698,2]
[353057594,1739531439603,-500.0,0.00013698,2]
[353057595,1739531439612,-397.16253902,0.00013698,2]
[353057596,1739531439623,-500.0,0.00013698,2]
[353057597,1739531439633,-500.0,0.00013698,2]
[353057598,1739531439643,-500.0,0.00013698,2]
[353057599,1739531439652,-1176.62,0.00013698,2]
[353057600,1739531439662,-500.0,0.00013698,2]
[353057601,1739531439671,-500.0,0.00013698,2]
[353057602,1739531439681,-1105.08,0.00013698,2]
[353057603,1739531439691,-500.0,0.00013698,2]
[353057604,1739531439701,-500.0,0.00013698,2]
[353057605,1739531439711,-500.0,0.00013698,2]
[353057606,1739531439722,-500.0,0.00013698,2]
[353057607,1739531439731,-500.0,0.00013698,2]
[353057608,1739531439741,-468.921,0.00013698,2]
[353057609,1739531439751,-365.50117223,0.00013698,2]
[353057610,1739531439762,-500.0,0.00013698,2]
[353057611,1739531439771,-500.0,0.00013698,2]
[353057612,1739531439781,-500.0,0.00013698,2]
[353057613,1739531439791,-625.78,0.00013698,2]
[353057614,1739531439800,-500.0,0.00013698,2]
[353057615,1739531439809,-500.0,0.00013698,2]
[353057616,1739531439820,-500.0,0.00013698,2]
[353057617,1739531439831,-500.0,0.00013698,2]
[353057618,1739531439841,-500.0,0.00013698,2]
[353057619,1739531439851,-505.96156691,0.00013698,2]
[353057620,1739531439860,-500.0,0.00013698,2]
[353057621,1739531439870,-500.0,0.00013698,2]
[353057622,1739531439879,-2504.8,0.00013698,2]
[353057623,1739531439889,-500.0,0.00013698,2]
[353057624,1739531439898,-500.0,0.00013698,2]
[353057625,1739531439909,-500.0,0.00013698,2]
[353057626,1739531439918,-500.0,0.00013698,2]
[353057627,1739531439927,-352.6807109,0.00013698,2]
[353057628,1739531439938,-9772.61,0.00013698,2]
[353057629,1739531439947,-2417.71,0.00013698,2]
[353057630,1739531439957,-701.43,0.00013698,2]
[353057631,1739531439967,-1329.28,0.00013698,2]
[353057632,1739531439977,-646.31,0.00013698,2]
[353057633,1739531439987,-500.0,0.00013698,2]
[353057634,1739531439997,-500.0,0.00013698,2]
[353057635,1739531440007,-538.61801475,0.00013698,2]
[353057636,1739531440016,-315.65846602,0.00013698,2]
[353057637,1739531440037,-289.961,0.00013698,2]
[353057638,1739531440049,-464.68053398,0.00013698,2]
[353057639,1739531440060,-500.0,0.00013698,2]
[353057640,1739531440069,-1501.96220153,0.00013698,2]
[353057641,1739531440085,-26942.83779847,0.00013698,2]
[353057642,1739531440095,-500.0,0.00013698,2]
[353057643,1739531440105,-500.0,0.00013698,2]
[353057644,1739531440114,-500.0,0.00013698,2]
[353057645,1739531440124,-500.0,0.00013698,2]
[353057646,1739531440133,-500.0,0.00013698,2]
[353057647,1739531440143,-500.0,0.00013698,2]
[353057648,1739531440153,-500.0,0.00013698,2]
[353057649,1739531440162,-1070.13,0.00013698,2]
[353057651,1739531440172,-500.0,0.00013698,2]
[353057653,1739531440181,-500.0,0.00013698,2]
[353057654,1739531440191,-823.39,0.00013698,2]
[353057655,1739531440202,-1880.08,0.00013698,2]
[353057656,1739531440213,-236.11548078,0.00013698,2]
[353057657,1739531440225,-516.8,0.00013698,2]
[353057658,1739531440235,-760.84,0.00013698,2]
[353057659,1739531440245,-375.03487146,0.00013698,2]
[353057661,1739531440255,-500.0,0.00013698,2]
[353057662,1739531440265,-500.0,0.00013698,2]
[353057663,1739531440275,-500.0,0.00013698,2]
[353057664,1739531440285,-500.0,0.00013698,2]
[353057665,1739531440295,-500.0,0.00013698,2]
[353057666,1739531440305,-500.0,0.00013698,2]
[353057667,1739531440315,-2231.89,0.00013698,2]
[353057668,1739531440325,-500.0,0.00013698,2]
[353057669,1739531440335,-6196.74,0.00013698,2]
[353057670,1739531440345,-500.0,0.00013698,2]
[353057671,1739531440354,-500.0,0.00013698,2]
[353057672,1739531440363,-500.0,0.00013698,2]
[353057673,1739531440373,-500.0,0.00013698,2]
[353057674,1739531440384,-500.0,0.00013698,2]
[353057676,1739531440393,-500.0,0.00013698,2]
[353057677,1739531440403,-500.0,0.00013698,2]
[353057679,1739531440413,-500.0,0.00013698,2]
[353057680,1739531440422,-500.0,0.00013698,2]
[353057681,1739531440432,-500.0,0.00013698,2]
[353057682,1739531440442,-500.0,0.00013698,2]
[353057683,1739531440453,-500.0,0.00013698,2]
[353057684,1739531440463,-500.0,0.00013698,2]
[353057685,1739531440474,-2451.77,0.00013698,2]
[353057686,1739531440484,-500.0,0.00013698,2]
[353057687,1739531440495,-500.0,0.00013698,2]
[353057688,1739531440506,-500.0,0.00013698,2]
[353057689,1739531440516,-500.0,0.00013698,2]
[353057690,1739531440525,-500.0,0.00013698,2]
[353057691,1739531440535,-500.0,0.00013698,2]
[353057692,1739531440549,-900.86,0.00013698,2]
[353057693,1739531440559,-500.0,0.00013698,2]
[353057694,1739531440568,-500.0,0.00013698,2]
[353057695,1739531440578,-500.0,0.00013698,2]
[353057696,1739531440589,-1239.28,0.00013698,2]
[353057697,1739531440598,-286.75,0.00013698,2]
[353057698,1739531440607,-500.0,0.00013698,2]
[353057699,1739531440617,-500.0,0.00013698,2]
[353057700,1739531440628,-500.0,0.00013698,2]
[353057701,1739531440637,-500.0,0.00013698,2]
[353057702,1739531440647,-795.18,0.00013698,2]
[353057703,1739531440656,-500.0,0.00013698,2]
[353057704,1739531440666,-953.5,0.00013698,2]
[353057706,1739531440676,-1161.01,0.00013698,2]
[353057707,1739531440686,-500.0,0.00013698,2]
[353057708,1739531440695,-500.0,0.00013698,2]
[353057709,1739531440705,-500.0,0.00013698,2]
[353057710,1739531440715,-500.0,0.00013698,2]
[353057712,1739531440723,-500.0,0.00013698,2]
[353057713,1739531440733,-500.0,0.00013698,2]
[353057714,1739531440743,-500.0,0.00013698,2]
[353057715,1739531440752,-477.36983795,0.00013698,2]
[353057716,1739531440762,-1902.85,0.00013698,2]
[353057717,1739531440772,-500.0,0.00013698,2]
[353057718,1739531440782,-500.0,0.00013698,2]
[353057719,1739531440794,-664.51,0.00013698,2]
[353057720,1739531440803,-500.0,0.00013698,2]
[353057721,1739531440813,-500.0,0.00013698,2]
[353057722,1739531440823,-500.0,0.00013698,2]
[353057723,1739531440833,-1004.44,0.00013698,2]
[353057724,1739531440843,-2383.56512037,0.00013698,2]
[353057725,1739531440925,-497.46418442,0.00013698,2]
[353057735,1739531444016,-6068.36069521,0.00013698,2]
[353057736,1739531444027,-500.0,0.00013698,2]
[353057737,1739531444036,-500.0,0.00013698,2]
[353057738,1739531444047,-500.0,0.00013698,2]
[353057739,1739531444057,-152.88966977,0.00013698,2]
[353057740,1739531444067,-500.0,0.00013698,2]
[353057741,1739531444077,-500.0,0.00013698,2]
[353057742,1739531444087,-500.0,0.00013698,2]
[353057743,1739531444098,-1111.08,0.00013698,2]
[353057744,1739531444109,-500.0,0.00013698,2]
[353057745,1739531444119,-500.0,0.00013698,2]
[353057746,1739531444130,-1843.66963605,0.00013698,2]
[353057767,1739531446698,-2446.375,0.00013698,2]
[353057768,1739531446751,-1129.99536395,0.00013698,2]
[353057769,1739531446762,-765.82,0.00013698,2]
[353057770,1739531446771,-500.0,0.00013698,2]
[353057771,1739531446781,-500.0,0.00013698,2]
[353057772,1739531446791,-603.68,0.00013698,2]
[353057773,1739531446801,-500.0,0.00013698,2]
[353057774,1739531446812,-118.66234594,0.00013698,2]
[353057775,1739531446828,-370.6,0.00013698,2]
[353057776,1739531446840,-430.11062368,0.00013698,2]
[353057783,1739532533904,5029.18,0.00012131,60]
[353057813,1739532637826,-300.0,8.999e-05,2]
[353057814,1739532637836,-420.0,9.899e-05,2]
[353057816,1739532637845,-4508.17693926,0.0001,2]
[353057835,1739532639995,-2477.62032581,0.0001,2]
[353057850,1739532645856,-549.15864454,0.0001,2]
[353057851,1739532786969,1000.0,0.00016,120]
[353057852,1739532808367,1000.0,0.00016,120]
[353057908,1739533832084,-1473.28891729,0.0001,2]
[353057921,1739533838187,-256.0525508,0.0001,2]
[353057924,1739533838269,-1463.53206836,0.0001,2]
[353057925,1739533838281,-781.27293045,0.0001,2]
[353057996,1739533840132,-2290.89762349,0.0001,2]
[353057998,1739533840142,-162.582494,0.00010685,2]
[353058001,1739533840151,-190.74,0.00010959,2]
[353058003,1739533840161,-158.95,0.00010959,2]
[353058005,1739533840170,-794.77,0.00010959,2]
[353058006,1739533840179,-300.0,0.00011748,2]
[353058008,1739533840189,-503.60565497,0.0001175,2]
[353058010,1739533840198,-166.0,0.00012329,2]
[353058012,1739533840207,-3162.26306496,0.000125,5]
[353058014,1739533840217,-2692.52494212,0.000125,5]
[353058109,1739533843121,-494.18,0.000125,5]
[353058110,1739533843133,-2405.64144212,0.000125,5]
[353058111,1739533843143,-6696.07525689,0.000125,2]
[353058112,1739533843153,-420.0,0.000129,2]
[353058113,1739533843163,-1000.0,0.00013,13]
[353058114,1739533843172,-1000.0,0.00013,7]
[353058115,1739533843181,-456.240459,0.00013166,2]
[353058116,1739533843190,-158.46388673,0.000134,2]
[353058117,1739533843199,-188.06856971,0.00013428,2]
[353058118,1739533843209,-27711.02123108,0.000135,2]
[353058119,1739533843219,-17137.02955448,0.000135,2]
[353058120,1739533843228,-150.491,0.00013533,2]
[353058121,1739533843238,-1986.447,0.00013533,2]
[353058122,1739533843247,-538.0,0.00013533,2]
[353058123,1739533843257,-2292.0,0.00013533,2]
[353058124,1739533843267,-396.0,0.00013533,2]
[353058125,1739533843276,-183.505,0.00013533,2]
[353058127,1739533843286,-2000.0,0.000136,2]
[353058128,1739533843295,-2000.0,0.000136,3]
[353058129,1739533843304,-2000.0,0.000136,4]
[353058130,1739533843314,-2000.0,0.000136,5]
[353058131,1739533843323,-613.46373506,0.000136,6]
[353058132,1739533843336,-732.26371174,0.000136,6]
[353058137,1739533845942,-654.2725532,0.000136,6]
[353058138,1739533845954,-46.13606013,0.000136,7]
[353058139,1739533846046,-1953.86393987,0.000136,7]
[353058140,1739533846057,-2000.0,0.000136,8]
[353058141,1739533846066,-2000.0,0.000136,9]
[353058142,1739533846076,-2000.0,0.000136,10]
[353058143,1739533846086,-2020.17,0.000136,11]
[353058144,1739533846096,-158.46388666,0.00013603,2]
[353058146,1739533846106,-164.94742937,0.0001369,2]
[353058147,1739533846115,-291.03854298,0.00013698,2]
[353058148,1739533846125,-453.38631141,0.00013698,2]
[353058149,1739533846135,-402.32676961,0.00013698,2]
[353058150,1739533846145,-500.0,0.00013698,2]
[353058151,1739533846155,-500.0,0.00013698,2]
[353058152,1739533846166,-500.0,0.00013698,2]
[353058153,1739533846175,-363.25121882,0.00013698,2]
[353058154,1739533846187,-136.74878118,0.00013698,2]
[353058155,1739533846197,-500.0,0.00013698,2]
[353058156,1739533846207,-500.0,0.00013698,2]
[353058157,1739533846216,-205.00905593,0.00013698,2]
[353058158,1739533846226,-500.0,0.00013698,2]
[353058159,1739533846236,-619.72482855,0.00013698,2]
[353058160,1739533846250,-500.0,0.00013698,2]
[353058161,1739533846261,-500.0,0.00013698,2]
[353058162,1739533846271,-578.4468197,0.00013698,2]
[353058163,1739533846281,-439.80632446,0.00013698,2]
[353058164,1739533846291,-500.0,0.00013698,2]
[353058165,1739533846302,-500.0,0.00013698,2]
[353058166,1739533846313,-500.0,0.00013698,2]
[353058167,1739533846324,-500.0,0.00013698,2]
[353058168,1739533846334,-500.0,0.00013698,2]
[353058169,1739533846344,-500.0,0.00013698,2]
[353058170,1739533846354,-500.0,0.00013698,2]
[353058171,1739533846364,-566.16251725,0.00013698,2]
[353058172,1739533846375,-500.0,0.00013698,2]
[353058173,1739533846389,-500.0,0.00013698,2]
[353058174,1739533846400,-499.63457526,0.00013698,2]
[353058175,1739533846409,-504.98460337,0.00013698,2]
[353058176,1739533846420,-501.00463615,0.00013698,2]
[353058177,1739533846430,-500.0,0.00013698,2]
[353058178,1739533846441,-500.0,0.00013698,2]
[353058179,1739533846451,-500.0,0.00013698,2]
[353058180,1739533846463,-500.0,0.00013698,2]
[353058181,1739533846473,-500.0,0.00013698,2]
[353058182,1739533846482,-568.94888217,0.00013698,2]
[353058183,1739533846492,-500.0,0.00013698,2]
[353058184,1739533846501,-500.0,0.00013698,2]
[353058185,1739533846510,-500.0,0.00013698,2]
[353058186,1739533846520,-500.0,0.00013698,2]
[353058187,1739533846529,-500.0,0.00013698,2]
[353058188,1739533846538,-618.36,0.00013698,2]
[353058189,1739533846548,-500.0,0.00013698,2]
[353058190,1739533846558,-500.0,0.00013698,2]
[353058191,1739533846567,-500.0,0.00013698,2]
[353058192,1739533846578,-500.0,0.00013698,2]
[353058193,1739533846588,-500.0,0.00013698,2]
[353058194,1739533846597,-617.59,0.00013698,2]
[353058195,1739533846606,-500.0,0.00013698,2]
[353058196,1739533846616,-317.68,0.00013698,2]
[353058197,1739533846626,-500.0,0.00013698,2]
[353058198,1739533846635,-500.0,0.00013698,2]
[353058199,1739533846645,-500.0,0.00013698,2]
[353058200,1739533846657,-500.0,0.00013698,2]
[353058201,1739533846668,-500.0,0.00013698,2]
[353058202,1739533846678,-500.0,0.00013698,2]
[353058203,1739533846688,-633.26,0.00013698,2]
[353058204,1739533846698,-500.0,0.00013698,2]
[353058205,1739533846708,-500.0,0.00013698,2]
[353058206,1739533846717,-500.0,0.00013698,2]
[353058207,1739533846727,-500.0,0.00013698,2]
[353058208,1739533846736,-500.0,0.00013698,2]
[353058209,1739533846746,-539.56229887,0.00013698,2]
[353058210,1739533846755,-500.0,0.00013698,2]
[353058211,1739533846765,-500.0,0.00013698,2]
[353058212,1739533846774,-500.0,0.00013698,2]
[353058213,1739533846784,-504.10535091,0.00013698,2]
[353058214,1739533846794,-500.0,0.00013698,2]
[353058215,1739533846804,-632.4,0.00013698,2]
[353058216,1739533846814,-500.0,0.00013698,2]
[353058217,1739533846826,-500.0,0.00013698,2]
[353058218,1739533846836,-500.0,0.00013698,2]
[353058219,1739533846845,-500.0,0.00013698,2]
[353058220,1739533846855,-807.99014993,0.00013698,2]
[353058325,1739535032388,-162.582494,0.00010685,2]
[353058326,1739535032398,-500.0,0.0001175,2]
[353058327,1739535032407,-166.0,0.00012613,2]
[353058328,1739535032417,-800.0,0.00012993,2]
[353058329,1739535032426,-238.722,0.00013533,2]
[353058330,1739535032436,-153.465,0.00013533,2]
[353058331,1739535032445,-290.083,0.00013533,2]
[353058332,1739535032455,-2634.33419444,0.00013598,2]
[353058333,1739535032465,-290.20782929,0.00013598,2]
[353058334,1739535032474,-300.0,0.0001367,2]
[353058335,1739535032484,-2634.33419444,0.00013671,2]
[353058336,1739535032493,-13270.63763847,0.00013671,2]
[353058337,1739535032503,-151.0,0.00013697,2]
[353058338,1739535032512,-2796.17319212,0.00013698,5]
[353058339,1739535032521,-16087.87428362,0.00013698,5]
[353058340,1739535032530,-500.0,0.00013698,2]
[353058341,1739535032540,-500.0,0.00013698,2]
[353058342,1739535032550,-500.0,0.00013698,2]
[353058343,1739535032563,-151.0,0.00013698,2]
[353058344,1739535032573,-240.344214,0.00013698,2]
[353058345,1739535032583,-237.86594,0.00013698,2]
[353058346,1739535032594,-152.098624,0.00013698,2]
[353058347,1739535032603,-500.0,0.00013698,2]
[353058348,1739535032612,-151.0,0.00013698,2]
[353058349,1739535032622,-500.0,0.00013698,2]
[353058350,1739535032631,-500.0,0.00013698,2]
[353058351,1739535032641,-500.0,0.00013698,2]
[353058352,1739535032650,-500.0,0.00013698,2]
[353058353,1739535032659,-1000.0,0.00013698,2]
[353058354,1739535032668,-500.0,0.00013698,2]
[353058355,1739535032677,-151.0,0.00013698,2]
[353058356,1739535032686,-269.36225649,0.00013698,2]
[353058357,1739535032696,-1041.66,0.00013698,2]
[353058358,1739535032705,-500.0,0.00013698,2]
[353058359,1739535032714,-648.46017296,0.00013698,2]
[353058360,1739535032723,-500.0,0.00013698,2]
[353058361,1739535032733,-500.0,0.00013698,2]
[353058362,1739535032742,-151.0,0.00013698,2]
[353058363,1739535032751,-151.0,0.00013698,2]
[353058364,1739535032891,-151.0,0.00013698,2]
[353058365,1739535032904,-151.0,0.00013698,2]
[353058366,1739535032914,-151.0,0.00013698,2]
[353058367,1739535032924,-151.0,0.00013698,2]
[353058368,1739535032933,-151.0,0.00013698,2]
[353058370,1739535032943,-151.0,0.00013698,2]
[353058372,1739535032952,-151.0,0.00013698,2]
[353058374,1739535032962,-151.0,0.00013698,2]
[353058376,1739535032971,-717.59,0.00013698,2]
[353058378,1739535032980,-151.0,0.00013698,2]
[353058380,1739535032989,-151.0,0.00013698,2]
[353058382,1739535032998,-151.0,0.00013698,2]
[353058384,1739535033008,-151.0,0.00013698,2]
[353058386,1739535033018,-164.697516,0.00013698,2]
[353058388,1739535033027,-151.0,0.00013698,2]
[353058390,1739535033038,-151.0,0.00013698,2]
[353058392,1739535033047,-151.0,0.00013698,2]
[353058394,1739535033057,-151.0,0.00013698,2]
[353058396,1739535033066,-500.0,0.00013698,2]
[353058398,1739535033076,-554.37,0.00013698,2]
[353058400,1739535033086,-184.98368045,0.00013698,2]
[353058402,1739535033096,-500.0,0.00013698,2]
[353058404,1739535033106,-500.0,0.00013698,2]
[353058406,1739535033116,-500.0,0.00013698,2]
[353058407,1739535033126,-500.0,0.00013698,2]
[353058408,1739535033136,-500.0,0.00013698,2]
[353058409,1739535033146,-841.86,0.00013698,2]
[353058410,1739535033156,-500.0,0.00013698,2]
[353058411,1739535033166,-500.23501456,0.00013698,2]
[353058412,1739535033176,-500.0,0.00013698,2]
[353058413,1739535033186,-500.0,0.00013698,2]
[353058414,1739535033196,-500.0,0.00013698,2]
[353058415,1739535033206,-445.0,0.00013698,2]
[353058416,1739535033216,-151.0,0.00013698,2]
[353058417,1739535033226,-500.0,0.00013698,2]
[353058418,1739535033235,-500.0,0.00013698,2]
[353058419,1739535033244,-500.0,0.00013698,2]
[353058420,1739535033254,-500.0,0.00013698,2]
[353058421,1739535033264,-618.28490511,0.00013698,2]
[353058422,1739535033273,-500.0,0.00013698,2]
[353058423,1739535033283,-500.0,0.00013698,2]
[353058424,1739535033292,-500.0,0.00013698,2]
[353058425,1739535033302,-500.0,0.00013698,2]
[353058426,1739535033312,-500.0,0.00013698,2]
[353058427,1739535033322,-836.04,0.00013698,2]
[353058428,1739535033332,-500.0,0.00013698,2]
[353058429,1739535033344,-500.0,0.00013698,2]
[353058430,1739535033354,-500.0,0.00013698,2]
[353058431,1739535033364,-500.0,0.00013698,2]
[353058432,1739535033374,-500.0,0.00013698,2]
[353058433,1739535033384,-500.0,0.00013698,2]
[353058434,1739535033394,-500.0,0.00013698,2]
[353058435,1739535033404,-151.0,0.00013698,2]
[353058436,1739535033413,-500.0,0.00013698,2]
[353058437,1739535033423,-1050.06,0.00013698,2]
[353058438,1739535033432,-500.0,0.00013698,2]
[353058439,1739535033442,-500.0,0.00013698,2]
[353058440,1739535033451,-1280.57,0.00013698,2]
[353058441,1739535033461,-500.0,0.00013698,2]
[353058442,1739535033471,-500.0,0.00013698,2]
[353058443,1739535033480,-500.0,0.00013698,2]
[353058444,1739535033490,-500.0,0.00013698,2]
[353058445,1739535033500,-500.0,0.00013698,2]
[353058446,1739535033510,-500.0,0.00013698,2]
[353058447,1739535033520,-151.0,0.00013698,2]
[353058448,1739535033530,-151.0,0.00013698,2]
[353058449,1739535033540,-151.0,0.00013698,2]
[353058450,1739535033550,-243.200232,0.00013698,2]
[353058451,1739535033560,-1059.04,0.00013698,2]
[353058452,1739535033569,-151.0,0.00013698,2]
[353058453,1739535033579,-151.0,0.00013698,2]
[353058454,1739535033589,-151.0,0.00013698,2]
[353058455,1739535033598,-151.0,0.00013698,2]
[353058456,1739535033608,-500.0,0.00013698,2]
[353058457,1739535033618,-500.0,0.00013698,2]
[353058458,1739535033628,-500.0,0.00013698,2]
[353058459,1739535033638,-500.0,0.00013698,2]
[353058460,1739535033648,-500.0,0.00013698,2]
[353058461,1739535033658,-151.319386,0.00013698,2]
[353058462,1739535033668,-500.0,0.00013698,2]
[353058463,1739535033677,-500.0,0.00013698,2]
[353058464,1739535033687,-405.78432548,0.00013698,2]
[353058465,1739535033696,-943.83,0.00013698,2]
[353058466,1739535033706,-500.0,0.00013698,2]
[353058467,1739535033715,-151.0,0.00013698,2]
[353058468,1739535033725,-151.0,0.00013698,2]
[353058469,1739535033734,-518.48740599,0.00013698,2]
[353058470,1739535033744,-500.0,0.00013698,2]
[353058471,1739535033753,-6666.01,0.00013698,2]
[353058472,1739535033763,-500.0,0.00013698,2]
[353058473,1739535033773,-12578.57,0.00013698,2]
[353058474,1739535033785,-151.478029,0.00013698,2]
[353058475,1739535033798,-2827.28,0.00013698,2]
[353058476,1739535033808,-406.67128258,0.00013698,2]
[353058477,1739535033818,-1287.38,0.00013698,2]
[353058478,1739535033828,-3273.06,0.00013698,2]
[353058479,1739535033838,-500.0,0.00013698,2]
[353058480,1739535033847,-500.0,0.00013698,2]
[353058481,1739535033857,-3677.9,0.00013698,2]
[353058482,1739535033868,-500.0,0.00013698,2]
[353058483,1739535033877,-1443.85,0.00013698,2]
[353058484,1739535033887,-151.0,0.00013698,2]
[353058485,1739535033897,-151.818915,0.00013698,2]
[353058486,1739535033906,-500.0,0.00013698,2]
[353058487,1739535033916,-500.0,0.00013698,2]
[353058488,1739535033925,-500.0,0.00013698,2]
[353058489,1739535033934,-500.0,0.00013698,2]
[353058490,1739535033944,-500.0,0.00013698,2]
[353058491,1739535033954,-1171.54,0.00013698,2]
[353058492,1739535033964,-500.0,0.00013698,2]
[353058493,1739535033974,-500.0,0.00013698,2]
[353058494,1739535033984,-500.0,0.00013698,2]
[353058495,1739535033993,-752.67,0.00013698,2]
[353058496,1739535034002,-500.0,0.00013698,2]
[353058497,1739535034012,-500.0,0.00013698,2]
[353058498,1739535034021,-500.0,0.00013698,2]
[353058499,1739535034031,-500.0,0.00013698,2]
[353058500,1739535034040,-500.0,0.00013698,2]
[353058501,1739535034050,-2039.5,0.00013698,2]
[353058502,1739535034059,-500.0,0.00013698,2]
[353058503,1739535034069,-151.0,0.00013698,2]
[353058504,1739535034079,-500.0,0.00013698,2]
[353058505,1739535034088,-37383.51,0.00013698,2]
[353058506,1739535034098,-868.77,0.00013698,2]
[353058507,1739535034108,-875.22,0.00013698,2]
[353058508,1739535034118,-500.0,0.00013698,2]
[353058509,1739535034128,-2602.45,0.00013698,2]
[353058510,1739535034137,-151.0,0.00013698,2]
[353058511,1739535034147,-1506.82,0.00013698,2]
[353058512,1739535034157,-500.0,0.00013698,2]
[353058513,1739535034167,-500.0,0.00013698,2]
[353058514,1739535034177,-7014.36,0.00013698,2]
[353058515,1739535034186,-500.0,0.00013698,2]
[353058516,1739535034196,-500.0,0.00013698,2]
[353058517,1739535034206,-13185.15,0.00013698,2]
[353058518,1739535034215,-500.0,0.00013698,2]
[353058519,1739535034225,-500.0,0.00013698,2]
[353058520,1739535034234,-500.0,0.00013698,2]
[353058521,1739535034244,-500.0,0.00013698,2]
[353058522,1739535034254,-151.0,0.00013698,2]
[353058523,1739535034263,-500.0,0.00013698,2]
[353058524,1739535034273,-184.37057679,0.00013698,2]
[353058525,1739535034282,-1095.29,0.00013698,2]
[353058526,1739535034292,-500.0,0.00013698,2]
[353058527,1739535034302,-500.0,0.00013698,2]